Cogmind - Beta 13 @@@ ROGUE MODE // 2024.03.25 @ 19:27:10 Player: Waste Result: Destroyed by 5Z-9QL(R) with Subdweller Beam Cannon Performance ------------- Evolutions (0) 0 Regions Visited (3) 600 Robots Destroyed (34) 170 Value Destroyed (966) 966 Prototype IDs (0) 0 Alien Tech Used (0) 0 Bonus (30) 30 TOTAL SCORE: 1766 Bonus ------- Follower Combat Kills 30 Cogmind --------- Core Integrity 0/250 Matter 286/300 Energy 94/125 System Corruption 0% Temperature Cool (18) Movement Rolling (130) Ox2 Location -10/Subcaves Parts ------- > --- POWER (1) -------- Light Ion Engine > --- PROPULSION (2) --- Subdweller Monowheel Subdweller Monowheel > --- UTILITY (2) ------ Huge Storage Unit Core Shielding > --- WEAPON (2) ------- Beamcaster Autogun > --- INVENTORY (25) --- Light Treads Wheel Improved Heat Sink Small Storage Unit Structural Scanner Core Shielding Scrap Shield Power Bank EM Shotgun Medium Laser Assault Rifle Assault Rifle Autogun Autogun Autogun Battle Cannon Battle Cannon Battle Cannon Slug Cannon Flail Peak State ------------ > --- POWER ------------ Light Angular Momentum Engine > --- PROPULSION ------- (None) > --- UTILITY ---------- Huge Storage Unit Core Shielding > --- WEAPON ----------- EM Shotgun Beamcaster > --- INVENTORY -------- Light Ion Engine Light Treads Improved Heat Sink Small Storage Unit Structural Scanner Core Shielding Scrap Shield Power Bank Medium Laser Assault Rifle Assault Rifle Autogun Autogun Autogun Autogun Battle Cannon Battle Cannon Battle Cannon Flail [Rating: 18] Favorites ----------- Power Ion Engine Engine Ion Engine Propulsion Light Treads Treads Light Treads Leg Aluminum Leg Wheel Compact Wheel Utility Huge Storage Unit Device Improved Heat Sink Storage Huge Storage Unit Protection Core Shielding Weapon EM Shotgun Energy Gun EM Shotgun Ballistic Gun Autogun Impact Weapon Flail Build | -11 -10 -10 -10 ------- Run | Yrd Mat Min Sub Slots Evolved . | . . . . Power . | . . . . Propulsion . | . . . . Utility . | . . . . Weapon . | . . . . Parts Attached 38 | . 9 2 27 Power 2 | . . . 2 Engine 2 | . . . 2 Core . | . . . . Reactor . | . . . . Propulsion 10 | . 4 . 6 Treads 3 | . 2 . 1 Leg 2 | . . . 2 Wheel 5 | . 2 . 3 Hover . | . . . . Flight . | . . . . Utility 6 | . 4 1 1 Device 2 | . 1 1 . Storage 1 | . 1 . . Processor . | . . . . Hackware . | . . . . Protection 3 | . 2 . 1 Artifact . | . . . . Weapon 20 | . 1 1 18 Energy Gun 11 | . 1 . 10 Energy Cannon . | . . . . Ballistic Gun 3 | . . 1 2 Ballistic Cannon . | . . . . Launcher . | . . . . Special Weapon . | . . . . Impact Weapon 6 | . . . 6 Slashing Weapon . | . . . . Piercing Weapon . | . . . . Special Melee Weapon . | . . . . Unidentified Prototypes . | . . . . Parts Lost 11 | . 1 1 9 Power 2 | . . . 2 Propulsion 5 | . 1 . 4 Utility . | . . . . Weapon 4 | . . 1 3 Highest Loss Streak 4 | . 1 1 4 To Critical Strikes . | . . . . Average Slot Usage (%) 97 | . 96 100 96 Engine 13 | . 14 14 13 Treads 16 | . 21 28 8 Leg 7 | . 3 . 13 Wheel 2 | . 2 . 3 Device 4 | . 6 12 . Storage 14 | . 14 14 14 Protection 8 | . 5 1 14 Energy Gun 21 | . 24 18 22 Ballistic Gun 4 | . 4 9 2 Impact Weapon 1 | . . . 2 Naked Turns . | . . . . Heaviest Build 96 | 14 90 91 96 Greatest Support 40 | 20 40 40 40 Greatest Overweight (x) 8 | . 8 2 5 Average Overweight (x) 2 | . 2 2 3 Largest Inventory Capacity 25 | . 25 25 25 Average Capacity 24 | . 23 25 25 Most Carried 25 | . 22 22 25 Average Carried 20 | . 14 21 22 Final Capacity 25 | 8 25 25 25 Final Carried 22 | 6 22 21 21 Class Distribution -------------------- 100% | Mutant Dominant Class ---------------- Mutant | -10/Materials Mutant | -10/Mines Mutant | -10/Subcaves Resources | -11 -10 -10 -10 ----------- Run | Yrd Mat Min Sub Matter Collected 630 | 200 154 35 241 Remotely . | . . . . Salvage Created 1161 | . 430 258 473 Parts 69 | . 12 28 29 Haulers Intercepted 1 | . 1 . . Recyclers Shooed . | . . . . Parts Field Recycled . | . . . . Retrieved Matter . | . . . . Parts Self-Destructed 8 | . . . 8 Prevented . | . . . . Kills | -11 -10 -10 -10 ------- Run | Yrd Mat Min Sub Combat Hostiles Destroyed 31 | . 9 11 11 Guns 27 | . 8 11 8 AOE 1 | . . . 1 Classes Destroyed 6 | . 3 3 . Worker 1 | . . 1 . Tunneler 1 | . . 1 . Hauler 1 | . 1 . . Swarmer 9 | . . 8 1 Grunt 11 | . 8 3 . Subdweller 11 | . 1 . 10 Best Kill Streak 4 | . 2 4 2 Combat Bots Only 3 | . 2 3 2 Max Kills in Single Turn 2 | . 1 2 1 Gunslinging . | . . . . Exploded 1 | . . . 1 Melee . | . . . . Uniques/NPCs Destroyed . | . . . . Combat | -11 -10 -10 -10 -------- Run | Yrd Mat Min Sub Hostile Shots Fired 145 | . 46 43 56 Missed 52 | . 15 18 19 Damage Taken 1467 | . 450 220 797 Core 250 | . 66 49 135 Absorbed by Shields . | . . . . Redirected to Shielding 37 | . 5 3 29 Core Remaining (%) 100 | 100 . . . Volleys Fired 93 | . 43 18 32 Largest 2 | . 2 2 2 Hottest 120 | . 100 100 120 Shots Fired 186 | . 86 36 64 Gun 186 | . 86 36 64 Cannon . | . . . . Launcher . | . . . . Special . | . . . . Kinetic 33 | . 23 5 5 Thermal 98 | . 63 31 4 Explosive . | . . . . Electromagnetic 55 | . . . 55 Robot Hit Streak 26 | . 26 5 16 Robot Miss Streak 3 | . 3 3 2 Penetration Max . | . . . . Secondary Targets 1 | . . 1 . Max Gunslinging Chain 1 | . . 1 . Shots Hit Robots 143 | . 67 21 55 Core Hits 67 | . 23 15 29 Critical Kills . | . . . . Critical Parts Destroyed . | . . . . Critical Strikes 5 | . 5 . . Burn 5 | . 5 . . Melee Attacks 25 | . . . 25 Impact 25 | . . . 25 Slashing . | . . . . Piercing . | . . . . Sneak Attacks . | . . . . Combat Hostiles . | . . . . Follow-up Attacks . | . . . . Damage Inflicted 2091 | . 915 330 846 Guns 1934 | . 862 296 776 Cannons . | . . . . Explosions 70 | . . . 70 Melee . | . . . . Ramming 87 | . 53 34 . Kinetic 283 | . 191 56 36 Thermal 1021 | . 671 240 110 Explosive . | . . . . Electromagnetic 700 | . . . 700 Impact . | . . . . Slashing . | . . . . Piercing . | . . . . Highest Corruption . | . . . . Average Corruption . | . . . . Corruption Purged . | . . . . Corruption Blocked . | . . . . Overload Shots . | . . . . Overflow Damage 20 | . 20 . . Projectiles . | . . . . Explosions . | . . . . Melee 20 | . 20 . . Knockbacks 2 | . 1 1 . Impact 2 | . 1 1 . Kinetic . | . . . . Secondary . | . . . . Self-Inflicted Damage 51 | . 8 . 43 Shots 1 | . . . 1 Rammed 10 | . 4 6 . Targets Rammed 13 | . 6 7 . Kicked 2 | . 2 . . Crushed 1 | . . 1 . Highest Temperature 229 | . 126 156 229 Average Temperature 38 | . 30 58 49 Received Heat Transfer 701 | . 261 39 401 Siege Activations . | . . . . Robots Corrupted 2 | . . . 2 Combat Hostiles 2 | . . . 2 Parts Fried 5 | . . . 5 Impact Corruptions 2 | . 2 . . Robots Melted 1 | . 1 . . Combat Hostiles 1 | . 1 . . Parts Melted 10 | . 7 . 3 Heat Transferred 3034 | . 2294 666 74 Parts Sabotaged . | . . . . Parts Stolen . | . . . . Parts Stripped . | . . . . Power Chain Reactions 1 | . . . 1 Alert | -11 -10 -10 -10 ------- Run | Yrd Mat Min Sub Peak Influence 165 | . 154 165 . Initial . | . . . . Average 32 | . 47 24 . Maximum Alert Level . | . . . . Low Security (%) 100 | . 100 100 . Level 1 . | . . . . Level 2 . | . . . . Level 3 . | . . . . Level 4 . | . . . . Level 5 . | . . . . High Security . | . . . . Max Security . | . . . . Squads Dispatched 2 | . 2 . . Investigation 1 | . 1 . . Extermination . | . . . . Reinforcement 1 | . 1 . . Assault . | . . . . Garrison . | . . . . Intercept . | . . . . Searches Triggered . | . . . . Construction Impeded . | . . . . Haulers Reinforced . | . . . . Active Scanning Responses . | . . . . Cargo Convoy Interrupts . | . . . . Stealth | -11 -10 -10 -10 --------- Run | Yrd Mat Min Sub Distress Signals 4 | . 4 . . Communications Jammed . | . . . . Distress Signals . | . . . . Times Spotted 53 | . 21 17 15 Peak Tracking Total 5 | . 5 4 2 Tactical Retreats 6 | . 2 4 . Traps | -11 -10 -10 -10 ------- Run | Yrd Mat Min Sub Traps Triggered 1 | . . . 1 Indirectly . | . . . . Trap Hack Attempts . | . . . . Triggered . | . . . . Disarmed . | . . . . Reprogrammed . | . . . . Reused . | . . . . Traps Extracted . | . . . . Installed . | . . . . Triggered . | . . . . Machines | -11 -10 -10 -10 ---------- Run | Yrd Mat Min Sub Machines Disabled . | . . . . Max in Single Turn . | . . . . Machines Repaired . | . . . . Machines Dismantled . | . . . . Machines Sabotaged . | . . . . Overloaded Fab Kills . | . . . . Hacking | -11 -10 -10 -10 --------- Run | Yrd Mat Min Sub Machines Accessed 4 | . 4 . . Terminals 4 | . 4 . . Fabricators . | . . . . Repair Stations . | . . . . Recycling Units . | . . . . Scanalyzers . | . . . . Garrison Access . | . . . . Total Hacks 10 | . 10 . . Successful 3 | . 3 . . Failed 7 | . 7 . . Catastrophic 2 | . 2 . . Database Lockouts . | . . . . Manual 7 | . 7 . . Terminals 10 | . 10 . . Fabricators . | . . . . Repair Stations . | . . . . Recycling Units . | . . . . Scanalyzers . | . . . . Garrison Access . | . . . . Terminal Hacks 3 | . 3 . . Robot Analysis 2 | . 2 . . Hauler Manifests 1 | . 1 . . Fabricator Hacks . | . . . . Repair Station Hacks . | . . . . Recycling Unit Hacks . | . . . . Scanalyzer . | . . . . Garrison Access Hacks . | . . . . Unauthorized Hacks . | . . . . Terminals . | . . . . Fabricators . | . . . . Repair Stations . | . . . . Recycling Units . | . . . . Scanalyzers . | . . . . Garrison Access . | . . . . Data Cores Recovered . | . . . . Used . | . . . . Hacking Detections 4 | . 4 . . Full Trace Events . | . . . . Feedback Events . | . . . . Feedback Blocked . | . . . . Robot Schematics Acquired . | . . . . Robots Built . | . . . . Authchips . | . . . . Time . | . . . . Total Robot Build Rating . | . . . . Part Schematics Acquired . | . . . . Parts Built . | . . . . Authchips . | . . . . Time . | . . . . Total Part Build Rating . | . . . . Parts Repaired . | . . . . Time . | . . . . Parts Recycled . | . . . . Recycled Matter . | . . . . Retrieved Matter . | . . . . Retrieved Components . | . . . . Parts Scanalyzed . | . . . . Part Schematics Acquired . | . . . . Parts Damaged . | . . . . Bothacking | -11 -10 -10 -10 ------------ Run | Yrd Mat Min Sub Used RIF Installer . | . . . . Robots Hacked . | . . . . Non-combat . | . . . . Combat . | . . . . Robot Hacks Applied . | . . . . Relay Couplers Released . | . . . . Fabnet Peak Effective % . | . . . . Robots Rewired . | . . . . Allies Hacked . | . . . . Hacks Repelled . | . . . . Allies | -11 -10 -10 -10 -------- Run | Yrd Mat Min Sub Total Allies 2 | . . 2 . Largest Group 2 | . . 2 2 Highest-Rated Group 51 | . . 51 51 Highest-Rated Ally 31 | . . 31 31 Total Orders . | . . . . Ally Attacks 5 | . . 2 3 Total Damage 99 | . . 21 78 Kills 1 | . . . 1 Allies Corrupted . | . . . . Allies Melted . | . . . . Intel | -11 -10 -10 -10 ------- Run | Yrd Mat Min Sub Robot Analysis Total 2 | . 2 . . Derelict Logs Recovered 3 | . . 2 1 Drone Launches . | . . . . Drone Recoveries . | . . . . Exploration | -11 -10 -10 -10 ------------- Run | Yrd Mat Min Sub Turns Passed 7129 | . 1198 2175 3756 Spaces Moved 2064 | 1 352 581 1130 Core . | . . . . Treads 1122 | . 237 581 304 Legs 502 | 1 74 . 427 Wheels 440 | . 41 . 399 Hover . | . . . . Flight . | . . . . Fastest Speed 120 | 120 120 320 130 Average Speed 304 | 120 262 320 310 Slowest Speed 480 | 120 400 320 480 Overloaded Moves . | . . . . Propulsion Burnouts . | . . . . Robots Hopped . | . . . . Cave-ins Triggered . | . . . . Exploration Rate (%) 60 | 2 67 97 74 Regions Visited 3 Branch Regions 2 Pre-discovered Areas 3 | . . 2 1 Known Exits Taken . | . . . . Unknown Exits Taken 3 | 1 1 1 . Scrap Searched 4 | . . 1 3 Spaces Dug . | . . . . Terrain Destroyed 2 | . . . 2 Melee . | . . . . Projectile . | . . . . AOE 2 | . . . 2 Terrain Rammed . | . . . . Walls Destroyed . | . . . . Machines Disabled . | . . . . Actions | -11 -10 -10 -10 --------- Run | Yrd Mat Min Sub Total 2654 | . 531 848 1275 Wait 386 | . 102 241 43 Move 2061 | . 351 580 1130 Hop . | . . . . Pick Up 28 | . 17 . 11 Fast Attach 6 | . 3 . 3 Attach 11 | . 2 1 8 Detach 2 | . 1 . 1 Swap 21 | . 4 1 16 Drop 8 | . 2 . 6 Fire 93 | . 43 18 32 Melee 25 | . . . 25 Ram 1 | . 1 . . Kick 2 | . 2 . . Crush 10 | . 3 7 . Escape Stasis . | . . . . Rewire . | . . . . Trap . | . . . . Miscellaneous . | . . . . Route ------- -11/Scrapyard -10/Materials (discovered 3 exits: [*Mat x2] / [*Min]) -10/Mines (discovered 3 exits: [*Mat x2] / [*Sub]) -10/Subcaves History --------- Turn | Location | Event 1 | -11/Scrapyard | Discovered new exit (range 0) 1 | -11/Scrapyard | Entered Materials 312 | -10/Materials | Build established: Mutant 382 | -10/Materials | Discovered new exit (range 3) 500 | -10/Materials | Derelicts attacked the area 950 | -10/Materials | Discovered new exit (range 7) 1177 | -10/Materials | Discovered new exit (range 8) 1199 | -10/Materials | Entered Mines 1710 | -10/Mines | Learned location of Zion (-6) 1831 | -10/Mines | Discovered new exit (range 16) 2027 | -10/Mines | Discovered new exit (range 6) 2111 | -10/Mines | Learned location of Storage (-9) 2951 | -10/Mines | Learned Materials interactive machine intel 3350 | -10/Mines | Discovered new exit (range 5) 3374 | -10/Mines | Entered Subcaves 3374 | -10/Subcaves | Accompanied by 2 allies 3379 | -10/Subcaves | Led the pair of lost Derelicts to an unsafe place 3418 | -10/Subcaves | Shifting Twisted Machinery released Sub. Laser 3426 | -10/Subcaves | Shifting Twisted Machinery released Sub. Laser 3590 | -10/Subcaves | A Subdweller sparked back to life 3608 | -10/Subcaves | Found Prototype Device 3625 | -10/Subcaves | A Subdweller sparked back to life 3793 | -10/Subcaves | A swath of the cavern ceiling suddenly collapsed 4014 | -10/Subcaves | Core integrity fell below 50% 4493 | -10/Subcaves | Shifting Twisted Machinery released Battle Cannon 4502 | -10/Subcaves | Shifting Twisted Machinery released Battle Cannon 4917 | -10/Subcaves | Met a Zionite searching for "candidates" 5320 | -10/Subcaves | Ambushed by Subdwellers from Twisted Machinery 6139 | -10/Subcaves | A swath of the cavern ceiling suddenly collapsed 6325 | -10/Subcaves | Core integrity fell below 20% 6349 | -10/Subcaves | Lost 4 parts (1p2n1w) 6689 | -10/Subcaves | Learned location of 1 exit from Materials 6729 | -10/Subcaves | Shifting Twisted Machinery released Slug Cannon 7130 | -10/Subcaves | Destroyed by 5Z-9QL(R) with Subdweller Beam Cannon Last Messages --------------- 06765_ Acquired Slug Cannon. 06819_ S-10 Pest destroyed. 06822_ Acquired 11 matter. 06824_ Flight Unit fries itself beyond repair. 06834_ Lgt. Ion Engine fries itself beyond repair. 06870_ Acquired 10 matter. 06884_ Acquired 25 matter. 06894_ Acquired Sub. Monowheel. 06931_ Subatomizers dissect the Sub. Optics. 06946_ Subatomizers dissect the Sub. Monowheel. 06996_ Acquired 10 matter. 06999_ Dropped Lgt. Treads. 06999_ Acquired Sub. Monowheel. 07002_ Acquired Lgt. Treads. 07021_ Acquired Wheel. 07022_ Acquired 10 matter. 07113_ Searching scrap... 07113_ Found Barrage Gun. 07113_ Found 15 Matter. 07114_ Acquired 10 matter. Map ----- +----------------------------------------------------+ | | | | | | | | | | | | | | | | | | | ?????????????????????????????????????????????????? | | ?????????????????????????????????????????????????? | | ?????????????????????????????????????????????????? | | ?????????????????????????????????????????????????? | | ?????????????????????????????????????????????????? | | ?????????????????????????????????????????????????? | | ??????????????????????????????????#??????????????? | | ????????????????????????????????? #??????????????? | | ???????????????????????????????? <#??????????????? | | ???????????????????????????????# #??????????????? | | ??????????????????????????????< ????????????????? | | ??????????????????????##?#####